[Event "34th MPL National U14-ch 2022"]
[Site "Ahmedabad"]
[Date "2022.05.11"]
[Round "5.3"]
[White "Ilamparthi A R"]
[Black "Bagwe Gaurang"]
[Result "0-1"]
[ECO "A07"]
[WhiteElo "2121"]
[BlackElo "1789"]
[Annotator "TA"]
[PlyCount "120"]
[EventDate "2022.05.09"]
[EventType "swiss"]
[EventCountry "IND"]
[SourceTitle "playchess.com"]
[Source "ChessBase"]
[SourceQuality "1"]
[TimeControl "5400+30"]

{[%evp 18,120,22,-36,-45,-64,-25,-54,-58,-63,-50,-81,-77,-71,-65,-86,-41,-49,20,14,39,-29,0,0,0,0,94,108,100,99,81,85,91,10,50,0,15,0,0,-1,14,14,19,-122,-83,-85,-79,-99,-71,-187,-174,-193,-181,-193,-125,-197,-110,-99,-107,-184,-23,-39,-36,-58,-37,-102,-88,-208,-136,-403,-234,-697,-725,-717,-719,-681,-650,-972,-976,-918,-912,-852,-695,-837,-838,-831,-823,-1309,-1264,-1386,-1375,-879,-872,-5177,-1813,-5181,-5181,-29982,-29983,-29982,-29983,-29982,-29971,-29986,-29980]} 1. Nf3 {[%emt 0:00:02]} d5 {[%emt 0:00:20]} 2. g3 {[%emt 0:00:18]} c6 {[%emt 0:00:05]} 3. Bg2 {[%emt 0:00:05]} Bf5 {[%emt 0:00:06]} 4. O-O {[%emt 0:00:14]} h6 {[%emt 0:00:04]} 5. d3 {[%emt 0:00:12]} e6 {[%emt 0:00:13]} 6. Nbd2 {[%emt 0:00:13]} Nf6 {[%emt 0:00:06]} 7. Qe1 {[%emt 0:00:36]} Be7 {[%emt 0:01:32]} 8. e4 {[%emt 0:00:18]} Bh7 {[%emt 0:00:41]} 9. Qe2 {[%emt 0:00:36]} O-O {[%emt 0:00:13]} 10. e5 {[%emt 0:00:34]} (10. b3 $11) 10... Nfd7 $15 {[%emt 0:01:44] A07: Réti Opening: New York and Capablanca Systems.} 11. Re1 {[%emt 0:02:32]} a5 {[%emt 0:01:23]} 12. Nf1 {[%emt 0:01:54]} c5 {[%emt 0:06:56] Black is slightly better.} 13. h4 {[%emt 0:02:01]} Nc6 {[%emt 0:02:29]} 14. Bf4 {[%emt 0:02:37]} Qb6 {[%emt 0:07:42] [#]} 15. Rab1 $146 {[%emt 0:12:26]} ({Predecessor:} 15. Ne3 Nd4 16. Qd2 Nf5 17. Nxf5 Bxf5 18. Nh2 Rfc8 19. g4 Bh7 20. Nf3 c4 21. Be3 {0-1 (28) Rakovsky,E-Hort,V Prague 1966}) 15... Rfc8 {[%emt 0:01:08]} 16. Ne3 {[%emt 0:07:43][%cal Oe3d5]} Nf8 {[%emt 0:16:23]} 17. h5 {[%emt 0:02:22] Against Ng6} c4 {[%emt 0:02:11]} (17... Qd8 $15) 18. dxc4 $11 {[%emt 0:13:20]} d4 {[%emt 0:00:38]} 19. Nf1 {[%emt 0:00:08]} (19. Ng4 $14) 19... Nb4 {[%emt 0:00:50]} (19... Rd8 $5 {[%cal Rd4d3]} 20. Red1 Nb4 $15) 20. c3 $1 {[%emt 0:02:19]} Bxb1 {[%emt 0:15:44]} 21. Rxb1 {[%emt 0:00:06]} d3 {[%emt 0:04:52]} (21... Nxa2 $11 22. Qd3 dxc3 23. bxc3 Qc5) 22. Qd2 $16 {[%emt 0:01:18]} Nc6 {[%emt 0:01:49]} 23. Qxd3 {[%emt 0:08:27]} Rd8 {[%emt 0:00:03]} 24. Qe2 {[%emt 0:11:11]} Nd7 {[%emt 0:01:58][%cal Bf8d7,Bd7c5,Bc5a4][%mdl 32]} 25. g4 {[%emt 0:04:39]} (25. N1h2 $16) 25... Nc5 {[%emt 0:01:08]} 26. Bg3 {[%emt 0:00:54]} (26. Be3 $14) 26... Rd3 {[%emt 0:01:25]} 27. N3d2 {[%emt 0:07:47]} Rad8 {[%emt 0:08:07][%cal Od3g3]} 28. Ne4 {[%emt 0:00:50]} Na4 {[%emt 0:03:59][%cal Oa4c3]} 29. Qc2 {[%emt 0:01:07]} Nc5 {[%emt 0:01:42][%cal Od3g3]} 30. Nd6 {[%emt 0:02:20] [#]} (30. Bf4 $11 {keeps the balance.}) 30... Rxg3 $1 {[%emt 0:09:38][%mdl 512]} 31. Nxg3 {[%emt 0:00:35][%cal Ob2b4] b4! is the strong threat.} Nxe5 {[%emt 0:01:05]} 32. Nde4 {[%emt 0:02:03]} Nxg4 {[%emt 0:00:40] Hoping for ...Nxe4. Black is more active.} 33. b4 {[%emt 0:01:46]} (33. Qe2 $17 {might work better.} f5 34. Nxc5 Bxc5 35. Ne4) 33... Nxe4 $19 {[%emt 0:00:38]} 34. Nxe4 {[%emt 0:01:34]} Qc7 {[%emt 0:01:42]} (34... axb4 35. Qe2 $17) 35. Rd1 {[%emt 0:00:11]} Qh2+ {[%emt 0:02:15]} ({Much less strong is} 35... Qxc4 36. Rxd8+ Bxd8 37. Qd1 $16) 36. Kf1 {[%emt 0:00:02] [#]} Qxh5 {[%emt 0:00:52]} ({And not} 36... axb4 37. Rxd8+ Bxd8 38. Qd1 $17) (36... Rxd1+ $1 $19 37. Qxd1 Qxh5) 37. Rxd8+ $17 {[%emt 0:00:18]} Bxd8 {[%emt 0:00:09]} 38. Ng3 {[%emt 0:00:47]} (38. c5 $17) 38... Qe5 $2 {[%emt 0:01:25]} (38... Qg5 $19 {aiming for ...Bc7.} 39. Bxb7 Bc7) 39. Qd1 $11 {[%emt 0:00:14]} Qg5 {[%emt 0:00:30]} (39... Qxc3 $2 40. Qxd8+ Kh7 41. Be4+ (41. Qd1 Qxc4+ 42. Kg1 Qxb4 $16) 41... g6 42. bxa5 $18) 40. Ne4 {[%emt 0:00:21]} Qh4 {[%emt 0:00:15]} 41. Qd7 {[%emt 0:00:42]} (41. c5 $1 $15) 41... Ne5 $17 {[%emt 0:01:56][%csl LRc4,LRd7]} 42. Qe8+ {[%emt 0:01:42]} (42. Qb5 $2 Bc7 43. Qc5 Qd8 $17) ({White should play} 42. Qc8) 42... Kh7 {[%emt 0:00:01]} 43. Nd6 $2 {[%emt 0:01:25][%mdl 8192] [#] Now White is beyond hope.} (43. c5 $17) 43... Bf6 $40 {[%emt 0:01:27][%mdl 128] Black has strong attack.} (43... Qf4 $142 $1 {( -> ...Qc1+)} 44. Be4+ f5 45. Qxd8 fxe4) 44. Nxf7 $2 {[%emt 0:02:23]} (44. Qa4) 44... Nd3 $19 {[%emt 0:00:40][%csl Gd3][%cal Rh4f2]} 45. Ke2 {[%emt 0:02:23]} Qxf2+ {[%emt 0:00:02]} 46. Kxd3 {[%emt 0:00:07]} Qg3+ {[%emt 0:00:07]} 47. Kc2 {[%emt 0:01:31]} Qxc3+ {[%emt 0:01:43]} 48. Kd1 {[%emt 0:00:00]} Qd3+ {[%emt 0:00:13]} 49. Kc1 {[%emt 0:00:01]} Qxc4+ {[%emt 0:00:13]} 50. Kd1 {[%emt 0:01:14]} Qg4+ {[%emt 0:00:04]} 51. Kc1 {[%emt 0:00:05]} Qxg2 {[%emt 0:00:22]} 52. Qxe6 {[%emt 0:00:32]} axb4 {[%emt 0:00:51][%mdl 4096] Endgame And now ...h5 would win. KQB-KQN} 53. Nd6 {[%emt 0:00:31]} Qg5+ {[%emt 0:00:20]} 54. Kd1 {[%emt 0:00:28]} Qe5 {[%emt 0:00:22]} 55. Qd7 {[%emt 0:00:13]} Qd5+ {[%emt 0:00:16]} 56. Ke2 {[%emt 0:00:09]} Qxa2+ {[%emt 0:00:10]} 57. Kf3 {[%emt 0:00:19]} Qd5+ {[%emt 0:00:06] Black mates.} 58. Ke2 {[%emt 0:00:10]} b3 {[%emt 0:00:15]} 59. Qc7 {[%emt 0:01:18]} Qc6 {[%emt 0:00:31]} 60. Qf7 {[%emt 0:00:58]} Qxd6 {[%emt 0:00:24] Weighted Error Value: White=0.98/Black=0.30} 0-1

[Event "34th MPL National U14-ch 2022"]
[Site "Ahmedabad"]
[Date "2022.05.11"]
[Round "5.4"]
[White "Dhruva Thota"]
[Black "Shaik Sumer Arsh"]
[Result "0-1"]
[ECO "C78"]
[WhiteElo "1743"]
[BlackElo "1999"]
[Annotator "TA"]
[PlyCount "82"]
[EventDate "2022.05.09"]
[EventType "swiss"]
[EventCountry "IND"]
[SourceTitle "playchess.com"]
[Source "ChessBase"]
[SourceQuality "1"]
[TimeControl "5400+30"]

{[%evp 19,82,36,35,35,37,32,25,27,25,31,29,21,29,27,14,28,85,0,0,-17,-15,-18,-12,-51,-18,-21,-14,-39,-20,-107,-107,-107,-107,-224,-224,-221,-229,-216,-210,-405,-280,-297,-297,-299,-213,-322,-328,-300,-300,-331,-322,-382,-399,-395,-392,-372,-367,-1018,-999,-858,-744,-721,-714,-1743,-1045]} 1. e4 {[%emt 0:00:26]} e5 {[%emt 0:00:12]} 2. Nf3 {[%emt 0:00:22]} Nc6 {[%emt 0:00:07]} 3. Bb5 {[%emt 0:00:15][%cal Bf1b5,Bb5a4,Ba4b3][%mdl 32]} a6 {[%emt 0:00:12]} 4. Ba4 {[%emt 0:00:21]} Nf6 {[%emt 0:00:08]} 5. O-O {[%emt 0:00:31]} b5 {[%emt 0:00:07]} 6. Bb3 {[%emt 0:00:04]} Bc5 {[%emt 0:00:07]} 7. c3 {[%emt 0:00:05]} d6 {[%emt 0:00:12]} 8. d4 {[%emt 0:00:05]} Bb6 {[%emt 0:00:10]} 9. a4 {[%emt 0:00:56]} Rb8 {[%emt 0:00:07]} 10. axb5 {[%emt 0:00:55]} axb5 {[%emt 0:00:03]} 11. Qd3 {[%emt 0:00:07] C78: Ruy Lopez: Archangelsk and Möller Defences.} O-O {[%emt 0:01:02] 11...Bd7 is not played anymore.} 12. Bg5 {[%emt 0:00:24]} h6 {[%emt 0:00:30]} 13. Bxf6 {[%emt 0:02:02] White has an edge. 13.Bh4 deserves study.} ({Don't play} 13. Qxb5 hxg5 14. Qxc6 exd4 15. cxd4 (15. Nxg5 Bb7 $17) 15... Bb7 $17) 13... Qxf6 {[%emt 0:00:03]} 14. Qxb5 {[%emt 0:00:20]} Na7 {[%emt 0:08:36]} 15. Qd3 {[%emt 0:06:51]} exd4 {[%emt 0:02:14]} 16. cxd4 {[%emt 0:13:41]} Nc6 {[%emt 0:06:22][%cal Rc6d4]} 17. Ra4 {[%emt 0:01:40]} Nxd4 {[%emt 0:18:49] [#]} 18. Nxd4 $146 {[%emt 0:01:06]} (18. Rxd4 $16 Bxd4 19. Nxd4) ({Predecessor:} 18. Rxd4 Bxd4 19. Nxd4 Ba6 20. Bc4 Bxc4 21. Qxc4 Rxb2 22. Nc3 c5 23. Ndb5 Rb8 24. Nd5 {0-1 (32) Srija,S (2102)-Parnali,S (2203) Bhubaneswar 2016}) 18... Bxd4 $11 {[%emt 0:00:03][%mdl 64] Remove Defender} 19. Rxd4 {[%emt 0:00:48] [#] And now Nd2 would win.} Rxb3 $1 {[%emt 0:00:29]} 20. Qxb3 {[%emt 0:00:02]} Qxd4 {[%emt 0:00:02]} 21. Qc2 {[%emt 0:00:21]} Bb7 {[%emt 0:00:58][%cal Bc8b7,Bb7e4,Be4c2][%mdl 32]} 22. Nc3 {[%emt 0:05:21]} Re8 {[%emt 0:05:34][%cal Bf8e8,Be8e5,Be5e1][%mdl 32]} 23. Re1 {[%emt 0:01:23]} Re5 {[%emt 0:05:13]} 24. Qb3 {[%emt 0:14:26]} (24. h3 $11 {keeps the balance.}) 24... Bxe4 $17 {[%emt 0:07:16] White is now going downhill.} 25. Qb8+ {[%emt 0:00:55]} Kh7 {[%emt 0:00:02] Hoping for ...Qd2.} 26. Qxc7 {[%emt 0:02:42] [#]} (26. h3 $17) 26... Qd2 $1 $40 {[%emt 0:00:50][%csl LRb2,LRe1][%cal Rd2e1][%mdl 128] Black has strong attack.} 27. Rd1 {[%emt 0:20:12] [#]} Bc2 $1 {[%emt 0:07:02][%mdl 512] ( -> ...Re1+)} 28. Rf1 {[%emt 0:06:41] [#]} Re1 $1 {[%emt 0:06:46]} 29. Qc4 {[%emt 0:05:40]} (29. h3) 29... Bd3 {[%emt 0:00:56]} 30. Qxd3+ {[%emt 0:00:06]} Qxd3 {[%emt 0:00:01][%csl Gd3][%cal Re1f1]} 31. Rxe1 {[%emt 0:00:08][%mdl 4096] Endgame KQ-KRN} Qd2 {[%emt 0:00:18][%cal Rd2e1]} 32. Rd1 {[%emt 0:04:14]} (32. Rb1 $142) 32... Qxb2 {[%emt 0:00:11]} 33. Nd5 {[%emt 0:00:05]} f5 {[%emt 0:01:21][%cal Bf7f5,Bf5f4][%mdl 32] Threatens to win with ...Qb3.} 34. g3 {[%emt 0:01:35]} g5 {[%emt 0:00:14]} 35. Re1 {[%emt 0:06:26]} Qd2 {[%emt 0:05:03][%csl LRd5,LRe1]} 36. Re7+ {[%emt 0:00:18]} Kg8 {[%emt 0:00:23]} 37. Ne3 {[%emt 0:03:18] Inhibits Qd1+.} f4 {[%emt 0:01:28]} 38. Ng2 {[%emt 0:01:01]} (38. Nf1 Qd1 39. Rb7) 38... Kf8 {[%emt 0:00:29] Black is clearly winning.} 39. Re4 {[%emt 0:00:36]} d5 {[%emt 0:03:22][%cal Bd6d5,Bd5d4,Bd4d3][%mdl 32]} 40. Re5 {[%emt 0:00:30]} d4 {[%emt 0:04:12] ...f3 is the strong threat.} 41. Ne1 {[%emt 0:02:35]} d3 {[%emt 0:00:40] Weighted Error Value: White=0.64/Black=0.16 (very precise)} 0-1

[Event "34th MPL National U14-ch 2022"]
[Site "Ahmedabad"]
[Date "2022.05.11"]
[Round "5.5"]
[White "Sahib Singh"]
[Black "Arpith S Bijoy"]
[Result "0-1"]
[ECO "B17"]
[WhiteElo "1991"]
[BlackElo "1713"]
[Annotator "TA"]
[PlyCount "108"]
[EventDate "2022.05.09"]
[EventType "swiss"]
[EventCountry "IND"]
[SourceTitle "playchess.com"]
[Source "ChessBase"]
[SourceQuality "1"]
[TimeControl "5400+30"]

{[%evp 18,108,29,16,38,8,16,14,9,-9,-3,0,8,0,2,0,26,29,26,0,0,3,12,9,25,0,0,0,0,0,0,-11,0,-33,-33,-33,-33,-33,-33,-33,-33,-33,-33,-33,0,-7,-7,-26,-26,-26,-26,-26,-26,-26,-26,-26,-26,-126,-26,-26,-26,-292,-248,-402,-399,-508,-318,-330,-315,-791,-790,-786,-778,-754,-754,-703,-597,-732,-717,-713,-669,-603,-595,-29981,-29982,-29982,-29981,-29977,-993,-1756,-1754,-29985,-29986]} 1. e4 {[%emt 0:03:12]} c6 {[%emt 0:00:13]} 2. d4 {[%emt 0:00:04]} d5 {[%emt 0:00:10]} 3. Nc3 {[%emt 0:00:07]} dxe4 {[%emt 0:00:25]} 4. Nxe4 {[%emt 0:00:06]} Nd7 {[%emt 0:00:07]} 5. Nf3 {[%emt 0:01:41]} Ngf6 {[%emt 0:00:23]} 6. Nxf6+ {[%emt 0:01:07]} Nxf6 {[%emt 0:00:07]} 7. Bc4 {[%emt 0:00:16]} Bf5 {[%emt 0:01:30]} 8. O-O {[%emt 0:00:08]} e6 {[%emt 0:00:40]} 9. c3 {[%emt 0:03:24]} Be7 {[%emt 0:03:57]} 10. Ne5 {[%emt 0:01:37]} O-O {[%emt 0:02:58] B17: Caro-Kann: Modern Line (4...Nd7).} 11. Be3 {[%emt 0:03:36] [#]} Rc8 $146 {[%emt 0:15:49]} ({Predecessor:} 11... Qc7 12. Qb3 c5 13. Rfe1 Bd6 14. Bf4 cxd4 15. cxd4 Rad8 16. Rac1 Qb8 17. f3 Nd7 18. Bg5 Nxe5 19. dxe5 {0-1 (53) Shkuratov,V (1869)-Dudarev,V (2127) St Petersburg 2019}) 12. Qe2 {[%emt 0:05:51]} Nd5 {[%emt 0:03:04] The position is equal.} 13. Bd3 {[%emt 0:07:12]} Bxd3 {[%emt 0:01:05]} 14. Nxd3 {[%emt 0:00:18]} Bd6 {[%emt 0:01:11]} 15. Bd2 {[%emt 0:04:37]} Qf6 {[%emt 0:14:23]} 16. Rad1 {[%emt 0:15:02]} Nf4 {[%emt 0:09:23]} 17. Bxf4 {[%emt 0:02:26]} Bxf4 {[%emt 0:00:07]} 18. Ne5 {[%emt 0:05:41]} Rfd8 {[%emt 0:04:13]} 19. Rd3 {[%emt 0:12:13]} Bxe5 {[%emt 0:11:14]} 20. dxe5 {[%emt 0:01:38]} Qg5 {[%emt 0:00:37]} 21. f4 {[%emt 0:02:27]} Qe7 {[%emt 0:01:04]} 22. Rfd1 {[%emt 0:00:59]} Rd5 {[%emt 0:00:21]} 23. Qe3 {[%emt 0:02:34]} b5 {[%emt 0:02:49]} 24. b3 {[%emt 0:11:52]} Rcd8 {[%emt 0:02:25]} 25. c4 {[%emt 0:01:14]} bxc4 {[%emt 0:00:25]} 26. bxc4 {[%emt 0:00:03]} Rxd3 {[%emt 0:00:33]} 27. Rxd3 {[%emt 0:00:05]} Rxd3 {[%emt 0:00:12]} 28. Qxd3 $15 {[%emt 0:00:06][%mdl 4096] Endgame KQ-KQ} Qc5+ {[%emt 0:00:19]} 29. Kf1 {[%emt 0:00:45]} h6 {[%emt 0:00:17]} 30. h4 {[%emt 0:00:50]} Qe7 {[%emt 0:03:07]} 31. g3 {[%emt 0:00:09]} h5 {[%emt 0:00:53]} 32. Qd6 {[%emt 0:05:54]} Qb7 {[%emt 0:00:24] White must now prevent ...Qb1+.} 33. Qd8+ {[%emt 0:03:39]} Kh7 {[%emt 0:00:14] [#] And now ...Qb1+ would win.} 34. Qd3+ {[%emt 0:00:05]} g6 {[%emt 0:00:12]} 35. Qb3 {[%emt 0:02:02]} Qd7 {[%emt 0:00:38]} 36. Kg2 {[%emt 0:03:32]} Qd2+ {[%emt 0:00:16]} 37. Kh3 {[%emt 0:01:04]} (37. Kg1 $11 {keeps the balance.}) 37... Qe1 {[%emt 0:00:34]} (37... Kg7 $17 {Strongly threatening ...c5.} 38. Qa4 Qf2) 38. Qf3 $11 {[%emt 0:00:54]} c5 {[%emt 0:00:12] Threatens to win with ...Qc1.} 39. Qb7 $2 {[%emt 0:00:23][%mdl 8192] This costs White the game.} (39. Kg2 $11) 39... Kg7 $19 {[%emt 0:00:07] aiming for ...Qf1+.} 40. Kg2 {[%emt 0:00:49] Prevents Qf1+.} (40. Qg2 {was worth a try.} Qb1 41. Kh2) 40... Qe2+ {[%emt 0:00:06]} 41. Kh3 {[%emt 0:00:12]} Qxa2 {[%emt 0:00:30]} 42. Qe7 {[%emt 0:00:15]} Qb1 {[%emt 0:00:30][%cal Rb1h1]} ({Not} 42... Qxc4 43. Qf6+ Kg8 44. Qd8+ Kh7 45. Qe7 $11) 43. Kh2 {[%emt 0:00:34] Inhibits Qh1+.} (43. Qf6+ Kg8 44. Qd8+ Kh7 45. Kg2) 43... Qc2+ {[%emt 0:00:07]} 44. Kh3 {[%emt 0:00:31]} Qd1 {[%emt 0:01:33][%cal Rd1h1]} 45. Kg2 {[%emt 0:00:31] Against Qh1+} Qe2+ {[%emt 0:00:04]} 46. Kg1 {[%emt 0:00:35]} Qf3 {[%emt 0:00:43]} 47. Qf6+ {[%emt 0:00:14]} Kg8 {[%emt 0:00:07]} 48. Qd8+ {[%emt 0:00:04]} Kh7 {[%emt 0:00:10]} 49. Kh2 {[%emt 0:00:21]} Qf2+ {[%emt 0:00:07]} 50. Kh3 {[%emt 0:00:37] [#]} Qg1 $1 {[%emt 0:00:16][%cal Rg1h1]} 51. Qa8 {[%emt 0:00:05]} a5 {[%emt 0:00:09][%cal Ba7a5,Ba5a4][%mdl 32]} 52. Qf3 {[%emt 0:01:14]} Kg7 {[%emt 0:00:29]} (52... Kh6 $142 53. Qa8 Kg7 54. Qf3 a4 55. Qe4 a3 56. Qa8 Qf1+ 57. Kh2 Qf2+ 58. Kh3 Qg1 59. Qg2 Qxg2+ 60. Kxg2 a2 61. Kf3 a1=Q 62. Ke3 Qd1 63. f5 gxf5 64. Kf2 Kh6 65. Kg2 Qe1 66. Kf3 Qd2 67. g4 fxg4+ 68. Kg3 Qe2 69. Kf4 Qf3#) 53. f5 {[%emt 0:00:47]} gxf5 {[%emt 0:00:07] ( -> ...a4)} 54. Qc6 {[%emt 0:00:54]} a4 {[%emt 0:00:07] Weighted Error Value: White=0.82/Black=0.26 (precise)} 0-1

[Event "34th MPL National U14-ch 2022"]
[Site "Ahmedabad"]
[Date "2022.05.11"]
[Round "5.6"]
[White "Bharadia Yash"]
[Black "Gandhi, Aakash"]
[Result "1-0"]
[ECO "C06"]
[WhiteElo "1924"]
[BlackElo "1698"]
[Annotator "TA"]
[PlyCount "115"]
[EventDate "2022.05.09"]
[EventType "swiss"]
[EventCountry "IND"]
[SourceTitle "playchess.com"]
[Source "ChessBase"]
[SourceQuality "1"]
[TimeControl "5400+30"]

{[%evp 24,115,27,33,44,47,105,105,105,105,101,104,108,106,114,109,118,118,112,100,97,91,96,84,105,104,107,108,107,107,110,110,108,110,118,56,120,54,189,123,131,125,424,414,418,420,395,420,523,555,499,466,595,591,577,575,645,618,620,584,731,713,691,614,810,795,919,942,1222,1163,1121,1060,2120,1851,29957,7331,4718,4710,29978,29979,29979,29980,29978,29981,29981,29982,29982,29983,29983,29984,29984,29985,29986,29987]} 1. e4 {[%emt 0:05:36]} e6 {[%emt 0:00:03]} 2. d4 {[%emt 0:00:09]} d5 {[%emt 0:00:10]} 3. Nd2 {[%emt 0:00:10]} Nf6 {[%emt 0:00:51]} 4. e5 {[%emt 0:00:09]} Nfd7 {[%emt 0:00:05]} 5. Bd3 {[%emt 0:00:09]} c5 {[%emt 0:00:04]} 6. c3 {[%emt 0:00:07]} Nc6 {[%emt 0:00:10]} 7. Ne2 {[%emt 0:00:06]} cxd4 {[%emt 0:00:05]} 8. cxd4 {[%emt 0:00:07]} Qb6 {[%emt 0:00:22]} 9. Nf3 {[%emt 0:00:09][%cal Bd2f3,Bf3d4,Bd4b5,Bb5c3][%mdl 32]} f6 {[%emt 0:00:39]} 10. exf6 {[%emt 0:01:25]} Nxf6 {[%emt 0:00:33]} 11. O-O {[%emt 0:00:44]} Bd6 {[%emt 0:00:13]} 12. b3 {[%emt 0:19:36]} O-O {[%emt 0:02:55]} 13. Bf4 {[%emt 0:07:26]} Nxd4 {[%emt 0:06:51] C06: French Tarrasch: 3...Nf6 4 e5 Nfd7 5 Bd3 main lines.} 14. Nfxd4 {[%emt 0:00:33]} Bxf4 {[%emt 0:01:30]} ({Black should play} 14... e5 $14) 15. Nxf4 $16 {[%emt 0:00:02][%cal Of4h5] Pair of Knights!} e5 {[%emt 0:00:06] [#] White is better.} 16. Nxd5 $1 {[%emt 0:02:22][%mdl 512]} Nxd5 {[%emt 0:02:04] [#]} 17. Qh5 $1 {[%emt 0:00:55][%csl LRe5,LRh7]} Nf6 {[%emt 0:04:12]} (17... exd4 $2 {leads to mate.} 18. Bxh7+ Kh8 19. Bg6+ Kg8 20. Qh7#) 18. Qxe5 {[%emt 0:01:39] [#] 0x0.0026dcc75ba1dp-1022s more active pieces.} Bg4 $146 {[%emt 0:01:40]} ({Predecessor:} 18... Re8 19. Qf4 Bg4 20. Nf3 Bxf3 21. Qxf3 a5 22. Rad1 Qb4 23. h3 Re7 24. g4 h6 {1-0 (40) Heinrich,M (2144)-Kahn,M (2208) Leutersdorf 2000}) 19. Nb5 {[%emt 0:10:15]} Rad8 {[%emt 0:06:16]} 20. Bc4+ {[%emt 0:00:29]} Kh8 {[%emt 1:11:41]} 21. Rae1 {[%emt 0:13:27]} a6 {[%emt 0:00:00] aiming for ...Nd7.} 22. Nc3 {[%emt 0:01:17]} Rde8 {[%emt 0:00:00]} 23. Qg3 {[%emt 0:02:37]} Qd4 {[%emt 0:00:00]} 24. h3 {[%emt 0:00:35]} Bh5 {[%emt 0:00:00]} 25. a4 {[%emt 0:01:19] Against b5} h6 {[%emt 0:00:00]} 26. Re3 $40 {[%emt 0:04:57][%mdl 128] White goes for the king.} Qd2 {[%emt 0:00:00]} 27. Be6 {[%emt 0:05:43]} Re7 {[%emt 0:00:00]} 28. Rfe1 {[%emt 0:00:07]} Rfe8 {[%emt 0:00:00]} 29. f4 {[%emt 0:03:22]} (29. Ne4 $16 Nxe4 30. Rxe4) 29... Bf7 {[%emt 0:00:00]} (29... Qd4 $14 30. Kh1 Qd6) 30. f5 {[%emt 0:02:01]} (30. Rd1 $16 Qb2 31. Re2) 30... Bh5 {[%emt 0:00:00]} ({Black should try} 30... Bxe6 $14 31. Rxe6 (31. fxe6 Qd8 $14) 31... Rxe6 32. Rxe6 (32. fxe6 Qc2 $16) 32... Qb2) 31. Qf2 {[%emt 0:00:59]} (31. Ne4 $18 Qd4 32. Kh2) 31... Qd4 {[%emt 0:00:00]} 32. Ne4 {[%emt 0:02:29]} Bf7 $2 {[%emt 0:00:00][%mdl 8192] [#]} (32... Rd8 $16 33. Qc2 Nd5 34. Bxd5 Rxd5) 33. Bxf7 $1 $18 {[%emt 0:04:22]} Rxf7 {[%emt 0:00:00] [#]} 34. Ng5 {[%emt 0:01:01][%mdl 512]} Rff8 {[%emt 0:00:00] Hoping for ...Rxe3.} 35. Ne6 {[%emt 0:00:34]} Rxe6 {[%emt 0:00:00]} 36. fxe6 {[%emt 0:00:19]} Re8 {[%emt 0:00:00]} 37. Rf3 {[%emt 0:01:12]} Qxf2+ {[%emt 0:00:00]} 38. Kxf2 {[%emt 0:00:13][%mdl 4096] Endgame KRR-KRN} Kg8 {[%emt 0:00:00]} 39. Rc3 {[%emt 0:00:12]} Re7 {[%emt 0:00:00]} 40. Kf3 {[%emt 0:00:25]} Kh7 {[%emt 0:00:00]} 41. Rd3 {[%emt 0:00:15]} g5 {[%emt 0:00:00]} 42. g4 {[%emt 0:00:10]} Kg6 {[%emt 0:00:00]} 43. b4 {[%emt 0:00:05]} Rc7 {[%emt 0:00:00]} 44. b5 {[%emt 0:00:32]} axb5 {[%emt 0:00:00]} 45. axb5 {[%emt 0:00:02][%cal Ba4b5,Bb5b6][%mdl 32]} Kg7 {[%emt 0:00:00]} 46. Rd8 {[%emt 0:00:40]} Re7 {[%emt 0:00:00]} 47. b6 {[%emt 0:00:04]} Ne8 {[%emt 0:00:00]} 48. Rd7 {[%emt 0:00:37]} Kf6 {[%emt 0:00:00]} 49. Kg3 {[%emt 0:00:04]} Ng7 {[%emt 0:00:00]} 50. Rc7 {[%emt 0:00:19] White wants to mate with Rf1+.} Nxe6 {[%emt 0:00:00]} 51. Rf1+ {[%emt 0:00:20] White mates.} Nf4 {[%emt 0:00:00]} 52. Rxe7 {[%emt 0:00:14]} Kxe7 {[%emt 0:00:00]} 53. Rxf4 {[%emt 0:00:24]} gxf4+ {[%emt 0:00:00]} 54. Kxf4 {[%emt 0:00:02] K3P-KPP} Ke6 {[%emt 0:00:00]} 55. h4 {[%emt 0:00:06]} Kf6 {[%emt 0:00:00]} 56. Ke4 {[%emt 0:00:04]} Ke6 {[%emt 0:00:00]} 57. g5 {[%emt 0:00:05]} h5 {[%emt 0:00:00]} 58. Kf4 {[%emt 0:00:03] Weighted Error Value: White=0.11 (very precise) /Black=0.50} 1-0